fUSD/lending_fUSD_20241207
["ID","MTS","AMOUNT","RATE_DAILY","PERIOD"]
[344524335,1733535764048,500.0,8.219e-05,2]
[344524336,1733535764340,500.0,8.493e-05,2]
[344524337,1733535764594,500.0,8.767e-05,2]
[344524338,1733535764850,500.0,9.041e-05,2]
[344524339,1733535765117,500.0,9.315e-05,2]
[344524340,1733535765379,500.0,9.589e-05,2]
[344524341,1733535765631,500.0,9.863e-05,2]
[344524342,1733535766409,500.0,9.588e-05,2]
[344524343,1733535766677,500.0,9.862e-05,2]
[344524344,1733535775135,410.54720809,9.917e-05,2]
[344524345,1733535777557,875.63,8.219e-05,2]
[344524346,1733535777791,840.52,9.084e-05,2]
[344524347,1733535777840,875.63,8.493e-05,2]
[344524348,1733535778092,875.63,8.767e-05,2]
[344524349,1733535778374,875.63,9.041e-05,2]
[344524350,1733535778670,875.63,9.315e-05,2]
[344524351,1733535778928,875.63,9.589e-05,2]
[344524352,1733535779191,875.63,9.863e-05,2]
[344524353,1733535780272,500.0,9.084e-05,2]
[344524354,1733535781140,410.54720809,9.977e-05,2]
[344524355,1733535787639,1161.16,9.084e-05,2]
[344524356,1733535794009,863.77,8.219e-05,2]
[344524357,1733535794067,1758.65889966,7.692e-05,2]
[344524358,1733535794270,863.77,8.493e-05,2]
[344524359,1733535794330,1758.65889966,7.689e-05,2]
[344524360,1733535794563,863.77,8.767e-05,2]
[344524361,1733535794612,1758.65889966,7.694e-05,2]
[344524362,1733535794843,863.77,9.041e-05,2]
[344524363,1733535794910,1758.65889966,7.682e-05,2]
[344524364,1733535795164,863.77,9.315e-05,2]
[344524365,1733535795212,1758.65889966,7.693e-05,2]
[344524366,1733535796212,1758.65889966,7.692e-05,2]
[344524367,1733535796257,863.77,9.589e-05,2]
[344524368,1733535796344,169.09,9.082e-05,2]
[344524369,1733535796392,863.77,9.863e-05,2]
[344524370,1733535801898,750.99,7.945e-05,2]
[344524371,1733535802209,750.99,7.945e-05,2]
[344524372,1733535802483,750.99,7.945e-05,2]
[344524373,1733535802570,200.0,7.685e-05,2]
[344524374,1733535802724,750.99,7.945e-05,2]
[344524375,1733535802792,200.0,7.679e-05,2]
[344524376,1733535803001,750.99,7.945e-05,2]
[344524377,1733535803048,935.91,8.219e-05,2]
[344524378,1733535803107,200.0,7.685e-05,2]
[344524379,1733535803239,750.99,7.945e-05,2]
[344524380,1733535803642,935.91,8.493e-05,2]
[344524381,1733535803700,200.0,7.679e-05,2]
[344524382,1733535803771,750.99,7.945e-05,2]
[344524383,1733535803828,935.91,8.767e-05,2]
[344524384,1733535803892,200.0,7.698e-05,2]
[344524385,1733535803963,750.99,7.945e-05,2]
[344524386,1733535804033,200.0,7.69e-05,2]
[344524387,1733535804111,750.99,7.945e-05,2]
[344524388,1733535804323,750.99,7.945e-05,2]
[344524389,1733535804588,750.99,7.945e-05,2]
[344524390,1733535804861,750.99,7.945e-05,2]
[344524391,1733535805108,750.99,7.945e-05,2]
[344524392,1733535805375,750.99,7.945e-05,2]
[344524393,1733535805659,750.99,7.945e-05,2]
[344524394,1733535805925,750.99,7.945e-05,2]
[344524395,1733535806030,935.91,9.041e-05,2]
[344524396,1733535806665,750.99,7.945e-05,2]
[344524397,1733535806716,935.91,9.315e-05,2]
[344524398,1733535806783,935.91,9.589e-05,2]
[344524399,1733535806831,750.99,7.945e-05,2]
[344524400,1733535806917,935.91,9.863e-05,2]
[344524401,1733535806965,750.99,7.945e-05,2]
[344524402,1733535807102,750.99,7.945e-05,2]
[344524403,1733535807353,750.99,7.945e-05,2]
[344524404,1733535807803,750.99,7.945e-05,2]
[344524405,1733535808080,750.99,7.945e-05,2]
[344524406,1733535808338,751.02336187,7.945e-05,2]
[344524407,1733535810640,200.0,7.683e-05,2]
[344524408,1733535810840,200.0,7.685e-05,2]
[344524409,1733535811109,200.0,7.7e-05,2]
[344524410,1733535811410,200.0,7.685e-05,2]
[344524411,1733535811473,701.45,9.082e-05,2]
[344524412,1733535811683,701.45,9.418e-05,2]
[344524413,1733535811733,200.0,7.681e-05,2]
[344524414,1733535812007,701.45,9.754e-05,2]
[344524415,1733535812063,200.0,7.699e-05,2]
[344524416,1733535815760,500.0,8.219e-05,2]
[344524417,1733535816015,500.0,8.493e-05,2]
[344524418,1733535816271,500.0,8.767e-05,2]
[344524419,1733535816565,500.0,9.041e-05,2]
[344524420,1733535817420,500.0,9.315e-05,2]
[344524421,1733535817512,500.0,9.589e-05,2]
[344524422,1733535817611,500.0,9.863e-05,2]
[344524423,1733535821851,200.0,7.685e-05,2]
[344524424,1733535822144,200.0,7.69e-05,2]
[344524425,1733535822417,200.0,7.694e-05,2]
[344524426,1733535822699,200.0,7.691e-05,2]
[344524427,1733535822987,200.0,7.689e-05,2]
[344524428,1733535823384,1027.36,8.219e-05,2]
[344524429,1733535823654,1027.36,8.493e-05,2]
[344524430,1733535823927,1027.36,8.767e-05,2]
[344524431,1733535824184,1027.36,9.041e-05,2]
[344524432,1733535824484,1027.36,9.315e-05,2]
[344524433,1733535824749,1027.36,9.589e-05,2]
[344524434,1733535825011,1027.36,9.863e-05,2]
[344524435,1733535826801,1083.18,9.132e-05,2]
[344524436,1733535835613,804.35,8.219e-05,2]
[344524437,1733535835893,804.35,8.493e-05,2]
[344524438,1733535836174,804.35,8.767e-05,2]
[344524439,1733535836435,804.35,9.041e-05,2]
[344524440,1733535836714,804.35,9.315e-05,2]
[344524441,1733535836988,804.35,9.589e-05,2]
[344524442,1733535837245,804.35,9.863e-05,2]
[344524443,1733535844058,185.01679549,0.0001,2]
[344524444,1733535844359,1311.72,8.219e-05,2]
[344524445,1733535844629,1311.72,8.493e-05,2]
[344524446,1733535844901,1311.72,8.767e-05,2]
[344524447,1733535845184,1311.72,9.041e-05,2]
[344524448,1733535845786,1311.72,9.315e-05,2]
[344524449,1733535846082,1311.72,9.589e-05,2]
[344524450,1733535846379,1311.72,9.863e-05,2]
[344524451,1733535847388,1318.99417474,7.7e-05,2]
[344524452,1733535847656,1318.99417474,7.699e-05,2]
[344524453,1733535847969,1318.99417474,7.695e-05,2]
[344524454,1733535848233,1318.99417474,7.694e-05,2]
[344524455,1733535848485,1318.99417474,7.699e-05,2]
[344524456,1733535848757,1318.99417474,7.683e-05,2]
[344524457,1733535851741,198.24,7.397e-05,2]
[344524458,1733535855644,200.0,7.682e-05,2]
[344524459,1733535855984,200.0,7.699e-05,2]
[344524460,1733535856247,200.0,7.681e-05,2]
[344524461,1733535856549,200.0,7.685e-05,2]
[344524462,1733535856838,200.0,7.688e-05,2]
[344524463,1733535857111,200.0,7.697e-05,2]
[344524464,1733535863458,3026.04248168,0.0001,2]
[344524465,1733535863976,2000.0,9.159e-05,2]
[344524466,1733535864030,200.0,7.697e-05,2]
[344524467,1733535864251,200.0,7.697e-05,2]
[344524468,1733535864521,200.0,7.697e-05,2]
[344524469,1733535864931,200.0,7.684e-05,2]
[344524470,1733535865134,819.23,8.219e-05,2]
[344524471,1733535865285,200.0,7.678e-05,2]
[344524472,1733535865493,200.0,7.695e-05,2]
[344524473,1733535865726,819.23,8.493e-05,2]
[344524474,1733535865997,819.23,8.767e-05,2]
[344524475,1733535866280,819.23,9.041e-05,2]
[344524476,1733535866895,819.23,9.315e-05,2]
[344524477,1733535867096,819.23,9.589e-05,2]
[344524478,1733535867277,819.23,9.863e-05,2]
[344524479,1733535873977,500.0,8.219e-05,2]
[344524480,1733535874160,500.0,8.493e-05,2]
[344524481,1733535874436,500.0,8.767e-05,2]
[344524482,1733535874714,500.0,9.041e-05,2]
[344524483,1733535875106,500.0,9.315e-05,2]
[344524484,1733535875530,500.0,9.589e-05,2]
[344524485,1733535875796,500.0,9.863e-05,2]
[344524486,1733535880596,1315.73,8.219e-05,2]
[344524487,1733535880873,1315.73,8.493e-05,2]
[344524488,1733535882122,1315.73,8.767e-05,2]
[344524489,1733535882262,1315.73,9.041e-05,2]
[344524490,1733535882468,1315.73,9.315e-05,2]
[344524491,1733535882561,1315.73,9.589e-05,2]
[344524492,1733535882652,1315.73,9.863e-05,2]
[344524493,1733535882969,150.0,0.0001,3]
[344524494,1733535891086,150.0,0.0001,2]
[344524495,1733535895026,960.54,8.219e-05,2]
[344524496,1733535895897,960.54,8.493e-05,2]
[344524497,1733535896170,960.54,8.767e-05,2]
[344524498,1733535896444,960.54,9.041e-05,2]
[344524499,1733535896756,960.54,9.315e-05,2]
[344524500,1733535897200,960.54,9.589e-05,2]
[344524501,1733535897536,960.54,9.863e-05,2]
[344524502,1733535900872,150.0,0.0001,2]
[344524503,1733535907454,150.0,0.0001,2]
[344524504,1733535907515,2000.0,0.0001,2]
[344524505,1733535909401,989.24563106,7.691e-05,2]
[344524506,1733535909663,989.24563106,7.693e-05,2]
[344524507,1733535909960,989.24563106,7.68e-05,2]
[344524508,1733535910237,989.24563106,7.699e-05,2]
[344524509,1733535910493,989.24563106,7.687e-05,2]
[344524510,1733535910769,989.24563106,7.698e-05,2]
[344524511,1733535912680,1264.539,9.055e-05,2]
[344524512,1733535917796,150.0,9.589e-05,2]
[344524513,1733535918856,150.595,9.055e-05,2]
[344524514,1733535920086,200.0,0.0001,2]
[344524515,1733535920348,150.0,9.589e-05,2]
[344524516,1733535921167,569.308,9.055e-05,2]
[344524517,1733535921731,1551.33,8.219e-05,2]
[344524518,1733535922187,1551.33,8.493e-05,2]
[344524519,1733535922482,1551.33,8.767e-05,2]
[344524520,1733535922986,1551.33,9.041e-05,2]
[344524521,1733535923220,1551.33,9.315e-05,2]
[344524522,1733535923813,1551.33,9.589e-05,2]
[344524523,1733535924640,1551.33,9.863e-05,2]
[344524524,1733535926486,1167.0,9.055e-05,2]
[344524525,1733535930998,634.0,9.055e-05,2]
[344524526,1733535935749,13716.0,9.055e-05,2]
[344524528,1733535948149,211.596,9.055e-05,2]
[344524529,1733535951341,247.394,9.055e-05,2]
[344524530,1733535955488,2842.21,9.145e-05,2]
[344524531,1733535955540,150.0,0.0001,2]
[344524532,1733535956634,633.193,9.055e-05,2]
[344524533,1733535958282,150.0,0.0001,2]
[344524534,1733535961418,2004.0,9.055e-05,2]
[344524535,1733535964876,150.0,0.0001,3]
[344524536,1733535965848,150.0,0.0001,3]
[344524537,1733535967722,1098.0,9.055e-05,2]
[344524538,1733535967983,741.93422329,7.696e-05,2]
[344524539,1733535968225,741.93422329,7.688e-05,2]
[344524540,1733535968475,741.93422329,7.685e-05,2]
[344524541,1733535968747,741.93422329,7.696e-05,2]
[344524542,1733535969031,741.93422329,7.682e-05,2]
[344524543,1733535969332,741.93422329,7.696e-05,2]
[344524544,1733535976686,654.517,9.055e-05,2]
[344524545,1733535981662,150.0,9.137e-05,2]
[344524546,1733535981855,1893.0,9.055e-05,2]
[344524547,1733535983578,250.0,9.137e-05,2]
[344524548,1733535991267,3761.0,9.055e-05,2]
[344524549,1733535996249,1293.425,9.055e-05,2]
[344524550,1733536000823,816.0,9.055e-05,2]
[344524551,1733536011350,670.623,9.055e-05,2]
[344524552,1733536016595,3568.847,9.055e-05,2]
[344524553,1733536020999,975.074,9.055e-05,2]
[344524554,1733536027344,556.45066747,7.686e-05,2]
[344524555,1733536027613,556.45066747,7.697e-05,2]
[344524556,1733536027904,556.45066747,7.681e-05,2]
[344524557,1733536028187,556.45066747,7.688e-05,2]
[344524558,1733536028454,556.45066747,7.68e-05,2]
[344524559,1733536028773,556.45066747,7.68e-05,2]
[344524561,1733536036839,500.0,0.0001,3]
[344524562,1733536042225,171.4,9.135e-05,2]
[344524563,1733536048763,389.04525495,9.935e-05,2]
[344524564,1733536056733,1000.0,9.155e-05,2]
[344524565,1733536073327,250.0,9.165e-05,2]
[344524566,1733536075987,901.71,9.165e-05,2]
[344524567,1733536088734,417.3380006,7.694e-05,2]
[344524568,1733536089332,417.3380006,7.68e-05,2]
[344524569,1733536089423,417.3380006,7.687e-05,2]
[344524570,1733536089681,417.3380006,7.698e-05,2]
[344524571,1733536089955,417.3380006,7.699e-05,2]
[344524572,1733536090238,417.3380006,7.696e-05,2]
[344524573,1733536096526,205.27360405,9.913e-05,2]
[344524574,1733536097894,150.0,9.589e-05,2]
[344524575,1733536100736,150.0,9.589e-05,2]
[344524576,1733536120650,300.0,9.157e-05,2]
[344524577,1733536142012,1500.0,9.157e-05,2]
[344524578,1733536148080,4087.0,9.998e-05,2]
[344524579,1733536148162,313.00350045,7.681e-05,2]
[344524580,1733536148366,313.00350045,7.689e-05,2]
[344524581,1733536148473,313.00350045,7.689e-05,2]
[344524582,1733536148708,313.00350045,7.682e-05,2]
[344524583,1733536149001,313.00350045,7.688e-05,2]
[344524584,1733536149275,313.00350045,7.681e-05,2]
[344524585,1733536162117,250.0,9.162e-05,2]
[344524586,1733536204116,2000.0,0.0001,2]
[344524587,1733536207013,234.75262534,7.68e-05,2]
[344524588,1733536207296,234.75262534,7.68e-05,2]
[344524589,1733536207843,200.0,0.0001,2]
[344524590,1733536210542,234.75262534,7.678e-05,2]
[344524591,1733536210794,234.75262534,7.694e-05,2]
[344524592,1733536210952,234.75262534,7.678e-05,2]
[344524593,1733536211107,234.75262534,7.685e-05,2]
[344524594,1733536212671,13716.0,9.055e-05,2]
[344524595,1733536217321,1167.0,9.055e-05,2]
[344524596,1733536222305,150.0,9.055e-05,2]
[344524597,1733536227132,5964.0,9.055e-05,2]
[344524598,1733536230143,160.91,9.149e-05,2]
[344524599,1733536230441,160.91,9.826e-05,2]
[344524600,1733536231000,150.0,9.055e-05,2]
[344524601,1733536231896,-150.0,0.0001001,2]
[344524604,1733536231907,-500.06,0.00010011,2]
[344524607,1733536231917,-500.81,0.00010012,2]
[344524610,1733536231927,-494.03,0.00010012,2]
[344524613,1733536231937,-507.41,0.00010012,2]
[344524616,1733536231947,-503.81,0.00010012,2]
[344524638,1733536232301,-505.44,0.00010012,2]
[344524639,1733536232315,-508.31,0.00010013,2]
[344524640,1733536232325,-497.23,0.00010013,2]
[344524641,1733536232335,-506.5,0.00010013,2]
[344524642,1733536232345,-499.69,0.00010013,2]
[344524643,1733536232354,-505.6,0.00010013,2]
[344524644,1733536232364,-503.89,0.00010013,2]
[344524645,1733536232373,-500.0,0.00010013,2]
[344524646,1733536232383,-150.01,0.00010013,2]
[344524647,1733536232392,-507.01,0.00010013,2]
[344524648,1733536232402,-220.20000004,0.00010013,2]
[344524649,1733536232415,-282.91999996,0.00010013,2]
[344524650,1733536232425,-504.24,0.00010013,2]
[344524651,1733536232435,-500.43,0.00010013,2]
[344524652,1733536232444,-501.33,0.00010014,2]
[344524653,1733536232453,-509.88,0.00010014,2]
[344524654,1733536232462,-508.41,0.00010014,2]
[344524655,1733536232471,-507.91,0.00010015,2]
[344524656,1733536232481,-150.0,0.00010015,2]
[344524657,1733536232491,-505.91,0.00010015,2]
[344524658,1733536232500,-502.07,0.00010016,2]
[344524659,1733536232509,-494.29,0.00010017,2]
[344524660,1733536232519,-499.95,0.00010019,2]
[344524661,1733536232528,-503.65,0.00010021,2]
[344524662,1733536232537,-508.03,0.00010023,2]
[344524663,1733536232547,-493.7,0.00010026,2]
[344524664,1733536232558,-494.33,0.00010031,2]
[344524665,1733536232567,-495.18,0.00010034,2]
[344524666,1733536232576,-509.73,0.00010034,2]
[344524667,1733536232585,-506.89,0.00010035,2]
[344524668,1733536232594,-150.0,0.00010035,2]
[344524669,1733536232604,-506.65,0.00010035,2]
[344524670,1733536232617,-491.98,0.00010035,2]
[344524671,1733536232626,-507.58,0.00010035,2]
[344524672,1733536232637,-508.17,0.00010035,2]
[344524673,1733536232646,-507.37,0.00010035,2]
[344524674,1733536232656,-502.09,0.00010035,2]
[344524675,1733536232665,-505.46,0.00010035,2]
[344524676,1733536232675,-496.28,0.00010035,2]
[344524677,1733536232684,-509.6,0.00010035,2]
[344524678,1733536232694,-493.18,0.00010035,2]
[344524679,1733536232703,-499.77,0.00010035,2]
[344524680,1733536232712,-497.83,0.00010036,2]
[344524681,1733536232721,-574.5389,0.00010036,2]
[344524682,1733536232731,-1000.0,0.00010036,2]
[344524683,1733536232740,-496.98,0.00010036,2]
[344524684,1733536232750,-503.12,0.00010036,2]
[344524685,1733536232759,-499.36,0.00010036,2]
[344524686,1733536232769,-497.5,0.00010036,2]
[344524687,1733536232778,-497.43,0.00010036,2]
[344524688,1733536232788,-504.46,0.00010036,2]
[344524689,1733536232797,-496.78,0.00010036,2]
[344524690,1733536232809,-497.5,0.00010036,2]
[344524691,1733536232818,-497.95,0.00010036,2]
[344524692,1733536232829,-205.27360404,0.00010036,2]
[344524693,1733536232838,-200.0,0.00010064,2]
[344524694,1733536232847,-150.0,0.00010082,5]
[344524695,1733536232857,-171.87,0.00010086,2]
[344524696,1733536232866,-701.45,0.0001009,2]
[344524697,1733536232876,-2000.0,0.000101,2]
[344524698,1733536232886,-200.0,0.000101,2]
[344524699,1733536232895,-2000.0,0.000101,2]
[344524700,1733536232904,-200.0,0.000101,2]
[344524701,1733536232914,-500.0,0.00010135,2]
[344524702,1733536232923,-3564.0300944,0.00010135,2]
[344524703,1733536232933,-507.62,0.00010136,2]
[344524704,1733536232942,-8621.4993,0.00010136,2]
[344524705,1733536232952,-500.0,0.00010136,2]
[344524706,1733536232962,-990.12,0.00010136,2]
[344524707,1733536232971,-500.0,0.00010136,2]
[344524708,1733536232980,-500.0,0.00010136,2]
[344524709,1733536232992,-500.0,0.00010136,2]
[344524710,1733536233002,-1038.36,0.00010136,2]
[344524711,1733536233012,-1010.91,0.00010136,2]
[344524712,1733536233022,-501.70118137,0.00010136,2]
[344524713,1733536233032,-500.0,0.00010136,2]
[344524714,1733536233042,-1180.33,0.00010136,2]
[344524715,1733536233054,-500.0,0.00010136,2]
[344524716,1733536233065,-637.63,0.00010136,2]
[344524717,1733536233075,-501.08507413,0.00010136,2]
[344524718,1733536233086,-903.24,0.00010136,2]
[344524719,1733536233100,-1081.3,0.00010136,2]
[344524720,1733536233110,-1231.81,0.00010136,2]
[344524721,1733536233121,-500.0,0.00010136,2]
[344524722,1733536233131,-1080.58,0.00010136,2]
[344524723,1733536233141,-500.0,0.00010136,2]
[344524724,1733536233151,-2311.91,0.00010136,2]
[344524725,1733536233160,-500.0,0.00010136,2]
[344524726,1733536233170,-1160.55,0.00010136,2]
[344524727,1733536233180,-191.59902802,0.00010136,2]
[344524728,1733536233190,-500.63268291,0.00010136,2]
[344524729,1733536233203,-500.0,0.00010136,2]
[344524730,1733536233213,-553.68,0.00010136,2]
[344524731,1733536233223,-500.0,0.00010136,2]
[344524732,1733536233233,-500.0,0.00010136,2]
[344524733,1733536233243,-692.9,0.00010136,2]
[344524734,1733536233253,-500.0,0.00010136,2]
[344524735,1733536233263,-1316.86,0.00010136,2]
[344524736,1733536233272,-945.34,0.00010136,2]
[344524737,1733536233282,-500.0,0.00010136,2]
[344524738,1733536233291,-865.87,0.00010136,2]
[344524739,1733536233301,-500.0,0.00010136,2]
[344524740,1733536233313,-2197.67,0.00010136,2]
[344524741,1733536233322,-1705.69,0.00010136,2]
[344524742,1733536233332,-2341.199,0.00010136,2]
[344524743,1733536233342,-166.788,0.00010136,2]
[344524744,1733536233352,-1267.06,0.00010136,2]
[344524745,1733536233362,-1414.49,0.00010136,2]
[344524746,1733536233372,-1616.63,0.00010136,2]
[344524747,1733536233382,-2472.9,0.00010136,2]
[344524748,1733536233391,-1973.18,0.00010136,2]
[344524749,1733536233402,-1808.78,0.00010136,2]
[344524750,1733536233411,-765.64,0.00010136,2]
[344524751,1733536233421,-1450.65,0.00010136,2]
[344524752,1733536233431,-1036.41,0.00010136,2]
[344524753,1733536233441,-944.33313517,0.00010136,2]
[344524754,1733536233455,-103.94686483,0.00010136,2]
[344524755,1733536233464,-1201.84,0.00010136,2]
[344524756,1733536233474,-593.82,0.00010136,2]
[344524757,1733536233483,-500.0,0.00010136,2]
[344524758,1733536233493,-2.01813517,0.00010136,2]
[344524759,1733536233701,-497.98186483,0.00010136,2]
[344524760,1733536233710,-359.26815017,0.00010136,2]
[344524761,1733536233722,-516.36184983,0.00010136,2]
[344524762,1733536233732,-863.77,0.00010136,2]
[344524763,1733536233741,-935.91,0.00010136,2]
[344524764,1733536233751,-500.0,0.00010136,2]
[344524765,1733536233761,-1027.36,0.00010136,2]
[344524766,1733536233772,-804.35,0.00010136,2]
[344524767,1733536233782,-1311.72,0.00010136,2]
[344524768,1733536233792,-819.23,0.00010136,2]
[344524769,1733536233801,-1315.73,0.00010136,2]
[344524770,1733536233813,-960.54,0.00010136,2]
[344524771,1733536233823,-1551.33,0.00010136,2]
[344524772,1733536233832,-521.822,0.0001015,2]
[344524773,1733536233842,-389.04525488,0.00010153,2]
[344524774,1733536233851,-2000.0,0.00010201,2]
[344524775,1733536233860,-200.0,0.00010201,2]
[344524776,1733536233869,-2000.0,0.00010201,2]
[344524777,1733536233879,-200.0,0.00010201,2]
[344524778,1733536233889,-840.52,0.0001022,2]
[344524779,1733536233899,-166.18357064,0.00010258,2]
[344524780,1733536233909,-439.99527895,0.00010258,2]
[344524781,1733536233918,-1000.0,0.00010299,2]
[344524782,1733536233928,-2000.0,0.00010303,2]
[344524783,1733536233938,-200.0,0.00010303,2]
[344524784,1733536233948,-2000.0,0.00010303,2]
[344524785,1733536233958,-200.0,0.00010303,2]
[344524786,1733536233970,-439.9952788,0.00010304,2]
[344524787,1733536233980,-412.1381,0.00010308,2]
[344524788,1733536233993,-2500.0,0.00010308,2]
[344524789,1733536234004,-500.0,0.00010309,2]
[344524790,1733536234014,-2500.0,0.00010309,2]
[344524791,1733536234024,-5567.69820492,0.0001031,2]
[344524792,1733536234034,-4466.9494,0.0001031,2]
[344524793,1733536234043,-56.05065934,0.0001035,2]
[344524794,1733536234129,-383.94461946,0.0001035,2]
[344524795,1733536234138,-389.04525488,0.00010372,2]
[344524796,1733536234148,-171.15,0.00010388,2]
[344524797,1733536234158,-439.9952788,0.00010396,2]
[344524798,1733536234168,-146.13184686,0.00010397,5]
[344524799,1733536234180,-93.56202056,0.00010397,5]
[344524800,1733536234190,-150.0,0.000104,2]
[344524801,1733536234200,-2000.0,0.00010406,2]
[344524802,1733536234210,-200.0,0.00010406,2]
[344524803,1733536234220,-680.9263894,0.00010406,2]
[344524804,1733536234233,-300.970731,0.00010406,2]
[344524805,1733536234245,-685.10000015,0.00010406,2]
[344524875,1733536236566,150.22,9.055e-05,2]
[344524940,1733536237739,-333.00287945,0.00010406,2]
[344524941,1733536237749,-500.0,0.00010406,2]
[344524942,1733536237758,-200.0,0.00010406,2]
[344524943,1733536237768,-500.0,0.00010406,2]
[344524945,1733536237778,-500.0,0.00010406,2]
[344524946,1733536237787,-500.0,0.00010406,2]
[344524948,1733536237798,-500.0,0.00010406,2]
[344524950,1733536237807,-500.0,0.00010406,2]
[344524951,1733536237818,-500.0,0.00010407,2]
[344524952,1733536237828,-500.0,0.00010407,2]
[344524953,1733536237837,-500.0,0.00010407,2]
[344524954,1733536237847,-1237.14,0.00010407,2]
[344524955,1733536237857,-500.0,0.00010407,2]
[344524956,1733536237866,-500.0,0.00010407,2]
[344524957,1733536237875,-500.0,0.00010407,2]
[344524958,1733536237884,-326.64061814,0.00010407,2]
[344524959,1733536237895,-500.0,0.00010407,2]
[344524960,1733536237904,-578.46,0.00010407,2]
[344524961,1733536237914,-500.0,0.00010407,2]
[344524962,1733536237923,-167.32796533,0.00010407,2]
[344524963,1733536237933,-500.0,0.00010407,2]
[344524964,1733536237942,-500.0,0.00010407,2]
[344524965,1733536237952,-500.0,0.00010407,2]
[344524966,1733536237962,-1472.55,0.00010407,2]
[344524967,1733536237972,-500.0,0.00010407,2]
[344524968,1733536237981,-500.0,0.00010407,2]
[344524969,1733536237995,-500.0,0.00010407,2]
[344524970,1733536238004,-500.0,0.00010407,2]
[344524971,1733536238013,-500.0,0.00010407,2]
[344524972,1733536238022,-500.0,0.00010407,2]
[344524973,1733536238032,-500.0,0.00010407,2]
[344524974,1733536238041,-503.90819277,0.00010407,2]
[344524975,1733536238051,-500.0,0.00010407,2]
[344524976,1733536238060,-500.0,0.00010407,2]
[344524977,1733536238070,-500.0,0.00010407,2]
[344524978,1733536238079,-6713.47034431,0.00010407,2]
[344524979,1733536238091,-491.0950006,0.00010407,2]
[344524980,1733536238188,-1601.42465509,0.00010407,2]
[344524981,1733536238198,-500.0,0.00010407,2]
[344524982,1733536238207,-500.0,0.00010407,2]
[344524983,1733536238216,-500.0,0.00010407,2]
[344524984,1733536238225,-604.27936788,0.00010407,2]
[344524986,1733536238234,-1921.93,0.00010407,2]
[344524988,1733536238244,-6459.48,0.00010407,2]
[344524990,1733536238253,-665.33,0.00010407,2]
[344524992,1733536238262,-501.83902308,0.00010407,2]
[344524994,1733536238271,-2738.63,0.00010407,2]
[344524996,1733536238280,-500.0,0.00010407,2]
[344524998,1733536238289,-2307.66,0.00010407,2]
[344525000,1733536238298,-500.0,0.00010407,2]
[344525002,1733536238307,-500.0,0.00010407,2]
[344525004,1733536238317,-186.78440807,0.00010407,2]
[344525006,1733536238329,-313.21559193,0.00010407,2]
[344525008,1733536238338,-539.77576951,0.00010407,2]
[344525010,1733536238349,-119.51423049,0.00010407,2]
[344525012,1733536238358,-940.36,0.00010407,2]
[344525014,1733536238368,-500.0,0.00010407,2]
[344525016,1733536238377,-500.0,0.00010407,2]
[344525018,1733536238386,-500.0,0.00010407,2]
[344525020,1733536238395,-500.0,0.00010407,2]
[344525022,1733536238405,-500.0,0.00010407,2]